fUST/lending_fUST_20251023
["ID","MTS","AMOUNT","RATE_DAILY","PERIOD"]
[392096552,1761157840344,-360885.089478,0.000249,2]
[392096553,1761157840353,-350.3,0.00024935,3]
[392096554,1761157840364,-1924.52849487,0.00024966,2]
[392096555,1761157840374,-322.52567531,0.00024967,2]
[392096556,1761157840383,-500.0,0.00024983,2]
[392096557,1761157840392,-158.51248006,0.00024983,2]
[392096558,1761157840401,-1076.36717253,0.00025,2]
[392096560,1761157840410,-1410.91358904,0.00025,2]
[392096562,1761157840420,-535.21790617,0.000251,2]
[392096564,1761157840429,-507.94926773,0.00025421,2]
[392096566,1761157840438,-506.1230814,0.00025421,2]
[392096568,1761157840447,-1000.0,0.00025421,2]
[392096570,1761157840456,-404.46227763,0.00025421,2]
[392096572,1761157840466,-1000.0,0.00025421,2]
[392096574,1761157840475,-500.0,0.00025421,2]
[392096576,1761157840484,-500.0,0.00025421,2]
[392096578,1761157840495,-1000.0,0.00025421,2]
[392096579,1761157840505,-500.0,0.00025421,2]
[392096580,1761157840514,-1000.0,0.00025421,2]
[392096581,1761157840524,-1000.0,0.00025421,2]
[392096582,1761157840534,-1000.0,0.00025421,2]
[392096583,1761157840543,-500.0,0.00025421,2]
[392096584,1761157840552,-1000.0,0.00025421,2]
[392096585,1761157840562,-1000.0,0.00025421,2]
[392096586,1761157840572,-500.0,0.00025421,2]
[392096587,1761157840582,-1000.0,0.00025421,2]
[392096588,1761157840596,-169.05335524,0.00025531,2]
[392096589,1761157840605,-385.0868039,0.00025559,2]
[392096590,1761157840615,-420.0,0.00025566,2]
[392096591,1761157840624,-1680.0,0.00025684,2]
[392096593,1761157840634,-3421.38399089,0.00025798,2]
[392096595,1761157840643,-368.60077178,0.00025799,2]
[392096596,1761157840652,-500.0,0.00025968,2]
[392096598,1761157840663,-501.10601427,0.00025968,2]
[392096599,1761157840674,-257.92056701,0.00025968,2]
[392096601,1761157840683,-239.1041431,0.00025968,2]
[392096603,1761157840692,-1500.0,0.00025968,2]
[392096605,1761157840702,-1500.0,0.00025968,2]
[392096607,1761157840711,-1500.0,0.00025968,2]
[392096608,1761157840721,-1500.0,0.00025968,2]
[392096609,1761157840730,-1500.0,0.00025968,2]
[392096610,1761157840739,-1787.19322435,0.00026,30]
[392096611,1761157840748,-2715.97002093,0.00026,2]
[392096613,1761157840758,-1124.08,0.00026108,2]
[392096615,1761157840767,-10888.27,0.000262,7]
[392096616,1761157840777,-161.0,0.00026274,14]
[392096617,1761157840786,-720.0,0.00026447,30]
[392096618,1761157840796,-2000.0,0.00026516,2]
[392096619,1761157840806,-2000.0,0.00026516,2]
[392096620,1761157840815,-1000.0,0.00026516,2]
[392096621,1761157840824,-2000.0,0.00026516,2]
[392096622,1761157840834,-168.0,0.00026554,2]
[392096623,1761157840843,-6179.84290942,0.000267,2]
[392096624,1761157840852,-535.21790617,0.000267,2]
[392096625,1761157840861,-312.0,0.0002672,2]
[392096626,1761157840871,-7045.5,0.00027,2]
[392096627,1761157840881,-562.39488972,0.00027025,3]
[392096628,1761157840891,-2500.0,0.00027064,2]
[392096629,1761157840900,-2500.0,0.00027064,2]
[392096630,1761157840910,-2500.0,0.00027064,2]
[392096631,1761157840919,-198.74233549,0.0002739,2]
[392096632,1761157840929,-848.96,0.000274,7]
[392096633,1761157840938,-727.37,0.000275,2]
[392096634,1761157840948,-2628.18964323,0.000275,2]
[392096635,1761157840958,-443.82885874,0.00027559,2]
[392096636,1761157840967,-500.0,0.00027612,5]
[392096637,1761157840976,-3031.31822136,0.00027612,5]
[392096638,1761157840985,-3000.0,0.00027612,5]
[392096639,1761157840994,-199.0,0.00027671,7]
[392096640,1761157841005,-632.0,0.0002772,2]
[392096641,1761157841014,-983.0,0.0002772,2]
[392096642,1761157841023,-2164.0,0.0002772,2]
[392096643,1761157841034,-411.0,0.0002772,2]
[392096644,1761157841043,-587.0,0.00027738,2]
[392096645,1761157841052,-231.7,0.00027945,8]
[392096646,1761157841062,-2351.0,0.00027994,2]
[392096647,1761157841072,-15194.17797009,0.00028,2]
[392096648,1761157841082,-787.72292643,0.00028,2]
[392096649,1761157841091,-1498.78,0.00028116,2]
[392096650,1761157841100,-3000.0,0.0002816,5]
[392096651,1761157841110,-535.21790617,0.000283,2]
[392096652,1761157841120,-10700.4261648,0.000285,7]
[392096653,1761157841129,-26626.65971563,0.0002876,2]
[392096654,1761157841139,-990.68799871,0.0002876,2]
[392096655,1761157841148,-4000.0,0.0002876,5]
[392096656,1761157841157,-2319.21272566,0.0002876,2]
[392096657,1761157841166,-250.40585376,0.0002876,2]
[392096658,1761157841176,-169.89105494,0.000288,7]
[392096659,1761157841184,-10888.27,0.000288,7]
[392096660,1761157841194,-882.29458223,0.00029,2]
[392096661,1761157841204,-1169.40395253,0.00029,2]
[392096662,1761157841213,-502.61799314,0.00029,7]
[392096663,1761157841223,-60061.74073658,0.0002904,2]
[392096664,1761157841233,-864.0,0.00029091,30]
[392096665,1761157841243,-234.816,0.00029133,22]
[392096666,1761157841254,-177.87051647,0.00029133,22]
[392096667,1761157841264,-160.58,0.00029235,30]
[392096668,1761157841274,-2021.11721159,0.0002939,5]
[392096669,1761157841283,-403.14601822,0.00029505,2]
[392096670,1761157841293,-160.0,0.00029505,2]
[392096671,1761157841302,-417.15472785,0.00029505,2]
[392096672,1761157841312,-502.57091357,0.00029559,2]
[392096673,1761157841321,-83117.28032618,0.0002956,2]
[392096674,1761157841331,-15826.95654765,0.00029845,2]
[392096675,1761157841341,-6179.84290942,0.000299,2]
[392096676,1761157841350,-535.21790617,0.000299,2]
[392096677,1761157841361,-848.96,0.000299,7]
[392096678,1761157841370,-212.61274819,0.00029973,5]
[392096679,1761157841379,-502.66916721,0.00029973,5]
[392096680,1761157841389,-501.06798052,0.00029973,5]
[392096681,1761157841399,-500.0,0.00029973,5]
[392096682,1761157841408,-500.0,0.00029973,5]
[392096683,1761157841417,-500.0,0.00029973,5]
[392096684,1761157841426,-500.0,0.00029973,5]
[392096685,1761157841435,-500.58622512,0.00029973,5]
[392096686,1761157841444,-500.0,0.00029973,5]
[392096687,1761157841454,-502.53122103,0.00029973,5]
[392096688,1761157841463,-739481.4374215,0.0003,15]
[392096689,1761157841627,-5000.0,0.0003,15]
[392096690,1761157841638,-380.9,0.0003,15]
[392096897,1761157846941,-217.72,0.0002999,10]
[392096898,1761157846951,-965.86,0.0003,15]
[392096899,1761157862250,370000.0,0.00023475,2]
[392096900,1761157932171,181.44,0.000138,30]
[392096901,1761157935567,362.87,0.00015055,30]
[392096902,1761157935996,544.31,0.0001631,30]
[392096903,1761157936421,725.74,0.00017564,30]
[392096904,1761157936813,907.18,0.00018819,30]
[392096905,1761157937228,1088.61,0.00020073,30]
[392096906,1761157937609,1270.05,0.00021328,30]
[392096907,1761157938027,1451.48,0.00022582,30]
[392096908,1761158050254,338.0,0.0003,120]
[392096909,1761158091890,164.71,0.00016142,30]
[392096910,1761158092370,329.42,0.0001761,30]
[392096911,1761158092782,494.13,0.00019077,30]
[392096912,1761158093211,658.84,0.00020545,30]
[392096913,1761158093630,823.55,0.00022012,30]
[392096914,1761158094075,988.26,0.0002348,30]
[392096915,1761158331076,176.16,0.0001638,30]
[392096916,1761158331512,352.33,0.00017869,30]
[392096917,1761158331925,528.49,0.00019358,30]
[392096918,1761158332359,704.66,0.00020847,30]
[392096919,1761158332763,880.82,0.00022336,30]
[392096920,1761158489241,185.2,0.00016229,30]
[392096921,1761158489741,370.4,0.00017704,30]
[392096922,1761158490017,555.6,0.0001918,30]
[392096923,1761158490446,740.8,0.00020655,30]
[392096924,1761158490845,926.0,0.0002213,30]
[392096926,1761158648445,181.68,0.00015683,30]
[392096927,1761158648850,363.36,0.00017108,30]
[392096928,1761158649246,545.05,0.00018534,30]
[392096929,1761158649637,726.73,0.0001996,30]
[392096930,1761158650033,908.41,0.00021385,30]
[392096931,1761158650447,1090.09,0.00022811,30]
[392096933,1761158709300,5000.0,0.00023565,2]
[392096943,1761158805441,184.89,0.00014232,30]
[392096944,1761158805841,369.77,0.00015526,30]
[392096945,1761158806239,554.66,0.0001682,30]
[392096946,1761158806632,739.55,0.00018114,30]
[392096947,1761158807035,924.43,0.00019407,30]
[392096948,1761158807439,1109.32,0.00020701,30]
[392096949,1761158807876,1117.39,0.00021995,30]
[392096950,1761158807898,176.82,0.00021995,30]
[392096951,1761158808298,1479.09,0.00023289,30]
[392096975,1761158959068,416.23,0.00021088,2]
[392096976,1761158959473,832.47,0.00023005,2]
[392097019,1761158963293,178.39,0.00013807,30]
[392097020,1761158963636,356.77,0.00015062,30]
[392097021,1761158964043,535.16,0.00016318,30]
[392097022,1761158964447,713.54,0.00017573,30]
[392097023,1761158964833,891.93,0.00018828,30]
[392097028,1761158965255,1070.31,0.00020083,30]
[392097029,1761158965688,1248.7,0.00021338,30]
[392097030,1761158966115,1427.09,0.00022593,30]
[392097033,1761159000815,741.140164,0.00013699,2]
[392097034,1761159001056,741.140164,0.00020187,2]
[392097077,1761159032861,-630.50306656,0.00023565,2]
[392097078,1761159032870,-383.416546,0.00023565,2]
[392097079,1761159032881,-1605.47,0.00023849,30]
[392097080,1761159032889,-676.92374635,0.00025104,30]
[392097090,1761159035090,355.31,0.0002148,2]
[392097091,1761159035524,710.62,0.00023433,2]
[392097102,1761159038490,-300.0,0.00025239,2]
[392097104,1761159038500,-1200.0,0.00025239,2]
[392097106,1761159038510,-2164.34004682,0.0002524,3]
[392097175,1761159040748,-82.9899325,0.0002524,3]
[392097177,1761159040759,-302.64345037,0.0002524,3]
[392097179,1761159040769,-500.0,0.00025321,6]
[392097181,1761159040779,-230.49,0.00025321,6]
[392097183,1761159040787,-1065.92,0.00025385,2]
[392097185,1761159040796,-452.43152428,0.00025565,2]
[392097187,1761159040806,-167.0,0.00026301,14]
[392097189,1761159040816,-165.83433671,0.00026457,2]
[392097191,1761159040825,-153.75640759,0.000266,2]
[392097193,1761159040836,-6.24359241,0.000266,2]
[392097195,1761159040846,-453.67704136,0.00026676,2]
[392097239,1761159111671,299.13,0.00021507,2]
[392097240,1761159112070,598.25,0.00023462,2]
[392097241,1761159116178,256.39,0.00014738,30]
[392097242,1761159116703,384.59,0.00015967,30]
[392097243,1761159117059,512.79,0.00017195,30]
[392097244,1761159117532,640.99,0.00018423,30]
[392097245,1761159117839,769.18,0.00019651,30]
[392097246,1761159118230,897.38,0.0002088,30]
[392097247,1761159118618,1025.58,0.00022108,30]
[392097248,1761159119013,1153.78,0.00023336,30]
[392097249,1761159187487,215.92,0.00021624,2]
[392097250,1761159187893,431.83,0.0002359,2]
[392097251,1761159266495,207.67,0.00021357,2]
[392097252,1761159266874,415.34,0.00023299,2]
[392097253,1761159270856,178.0,0.00014745,30]
[392097254,1761159271251,267.01,0.00015974,30]
[392097255,1761159271673,356.01,0.00017202,30]
[392097256,1761159272068,445.01,0.00018431,30]
[392097257,1761159272481,534.01,0.0001966,30]
[392097258,1761159272863,623.01,0.00020889,30]
[392097259,1761159273244,712.02,0.00022117,30]
[392097260,1761159273639,801.02,0.00023346,30]
[392097261,1761159341582,299.8,0.00022891,2]
[392097271,1761159420429,292.17,0.00023609,2]
[392097272,1761159424835,187.82,0.0001621,30]
[392097273,1761159425228,250.43,0.00017457,30]
[392097274,1761159425640,313.04,0.00018704,30]
[392097275,1761159426029,375.65,0.00019951,30]
[392097276,1761159426433,438.26,0.00021198,30]
[392097277,1761159426827,500.86,0.00022445,30]
[392097286,1761159496051,232.14,0.00023257,2]
[392097287,1761159500791,198.98,0.00017199,30]
[392097288,1761159501228,248.72,0.00018428,30]
[392097289,1761159501639,298.47,0.00019657,30]
[392097290,1761159502045,348.21,0.00020885,30]
[392097291,1761159502529,397.96,0.00022114,30]
[392097292,1761159502985,447.7,0.00023342,30]
[392097297,1761159571763,176.85,0.00022983,2]
[392097298,1761159576292,151.59,0.00017614,30]
[392097299,1761159576713,189.48,0.00018872,30]
[392097300,1761159577123,227.38,0.0002013,30]
[392097301,1761159577521,265.28,0.00021388,30]
[392097302,1761159578047,303.17,0.00022646,30]
[392097305,1761159646266,150.0,0.00021024,2]
[392097306,1761159646706,150.0,0.00022936,2]
[392097307,1761159650385,150.0,0.00013818,30]
[392097308,1761159650774,150.0,0.00015074,30]
[392097309,1761159651168,150.0,0.0001633,30]
[392097310,1761159651567,150.0,0.00017586,30]
[392097311,1761159652100,158.03,0.00018843,30]
[392097312,1761159652503,189.64,0.00020099,30]
[392097313,1761159652910,221.25,0.00021355,30]
[392097314,1761159653389,252.85,0.00022611,30]
[392097318,1761159720673,150.0,0.00021037,2]
[392097319,1761159721063,155.24,0.00022949,2]
[392097320,1761159725002,150.0,0.00013502,30]
[392097321,1761159725416,150.0,0.0001473,30]
[392097322,1761159725846,150.0,0.00015957,30]
[392097323,1761159726215,150.0,0.00017185,30]
[392097324,1761159726612,166.33,0.00018412,30]
[392097325,1761159727131,199.59,0.00019639,30]
[392097326,1761159727569,232.86,0.00020867,30]
[392097327,1761159728026,266.12,0.00022094,30]
[392097328,1761159728458,292.30688812,0.00023322,30]
[392097329,1761159796129,150.0,0.0002137,2]
[392097334,1761159900794,1469.4281558,0.00023673,2]
[392097345,1761159980676,5000.0,0.00023673,2]
[392097346,1761159993766,3380.5818442,0.00023673,2]
[392097347,1761159993792,1619.4181558,0.00023673,2]
[392097348,1761160018460,176.24,0.00020765,30]
[392097349,1761160018873,205.61,0.00022062,30]
[392097350,1761160019813,234.98,0.0002336,30]
[392097351,1761160027985,7238.84,0.00023673,2]
[392097356,1761160083643,202.4,0.00015135,2]
[392097357,1761160087974,159.37,0.00023424,2]
[392097358,1761160093587,170.75,0.00019356,30]
[392097359,1761160094001,204.9,0.00020647,30]
[392097360,1761160094476,239.05,0.00021937,30]
[392097361,1761160095362,273.2,0.00023228,30]
[392097412,1761160151147,7000.0,0.00035461,30]
[392097426,1761160160419,7000.0,0.00035461,30]
[392097427,1761160168918,170.63,0.0001941,30]
[392097428,1761160169317,199.07,0.00020623,30]
[392097429,1761160169723,227.51,0.00021836,30]
[392097430,1761160177783,7000.0,0.00035461,30]
[392097431,1761160193920,7000.0,0.00035461,30]
[392097454,1761160231806,-2374.04333219,0.00024231,2]
[392097477,1761160232121,-2625.95666781,0.00024231,2]
[392097479,1761160232130,-413.78742888,0.00024354,2]
[392097481,1761160232140,-981.046525,0.00024886,2]
[392097483,1761160232150,-168.0,0.00025238,2]
[392097484,1761160232159,-199.07,0.00025351,2]
[392097486,1761160232168,-168.0,0.00025396,2]
[392097488,1761160232179,-168.0,0.00025735,2]
[392097490,1761160232193,-857.48177315,0.00025873,2]
[392097492,1761160232202,-1200.0,0.00025932,2]
[392097494,1761160232211,-300.0,0.00025933,2]
[392097496,1761160232220,-166.66,0.00025935,2]
[392097498,1761160232229,-33.32162453,0.00025936,30]
[392097551,1761160237780,-168.66,0.00025317,2]
[392097553,1761160237790,-500.0,0.00025933,2]
[392097555,1761160237799,-188.83233114,0.00025933,2]
[392097557,1761160237809,-500.0,0.00025933,2]
[392097559,1761160237819,-500.0,0.00025933,2]
[392097561,1761160237829,-500.0,0.00025933,2]
[392097563,1761160237839,-500.0,0.00025933,2]
[392097565,1761160237848,-500.0,0.00025933,2]
[392097568,1761160237859,-500.0,0.00025933,2]
[392097569,1761160237869,-500.0,0.00025933,2]
[392097571,1761160237878,-454.87608076,0.00025933,2]
[392097586,1761160237887,-500.0,0.00025933,2]
[392097588,1761160237999,-500.0,0.00025933,2]
[392097590,1761160238009,-409.84979979,0.00025933,2]
[392097592,1761160238019,-361.16921588,0.00025933,2]
[392097594,1761160238029,-500.0,0.00025933,2]
[392097596,1761160238040,-398.87526415,0.00025933,2]
[392097598,1761160238052,-507.94063393,0.00025933,2]
[392097599,1761160238062,-500.0,0.00025933,2]
[392097601,1761160238073,-500.0,0.00025933,2]
[392097603,1761160238083,-500.0,0.00025933,2]
[392097605,1761160238093,-500.0,0.00025933,2]
[392097607,1761160238103,-500.0,0.00025933,2]
[392097610,1761160238114,-168.53778592,0.00025933,2]
[392097611,1761160238124,-500.0,0.00025933,2]
[392097614,1761160238134,-197.75519443,0.00025933,2]
[392097616,1761160238144,-500.0,0.00025933,2]
[392097618,1761160238153,-500.0,0.00025933,2]
[392097619,1761160238163,-500.0,0.00025933,2]
[392097621,1761160238174,-500.0,0.00025933,2]
[392097623,1761160238185,-500.0,0.00025933,2]
[392097625,1761160238194,-500.0,0.00025933,2]
[392097627,1761160238206,-500.0,0.00025933,2]
[392097629,1761160238215,-500.0,0.00025933,2]
[392097631,1761160238225,-339.88037766,0.00025933,2]
[392097633,1761160238236,-500.0,0.00025933,2]
[392097635,1761160238245,-500.0,0.00025933,2]
[392097637,1761160238254,-500.0,0.00025933,2]
[392097640,1761160238264,-173.80877384,0.00025933,2]
[392097642,1761160238275,-500.0,0.00025933,2]
[392097643,1761160238284,-500.0,0.00025933,2]
[392097645,1761160238293,-500.0,0.00025933,2]
[392097647,1761160238302,-500.0,0.00025933,2]
[392097650,1761160238312,-500.0,0.00025933,2]
[392097652,1761160238322,-500.0,0.00025933,2]
[392097654,1761160238332,-500.0,0.00025933,2]
[392097656,1761160238341,-500.0,0.00025933,2]
[392097658,1761160238351,-500.0,0.00025933,2]
[392097659,1761160238361,-318.6853504,0.00025933,2]
[392097661,1761160238371,-500.0,0.00025933,2]
[392097663,1761160238382,-500.0,0.00025933,2]
[392097665,1761160238402,-500.0,0.00025933,2]
[392097667,1761160238419,-500.0,0.00025933,2]
[392097669,1761160238429,-500.0,0.00025933,2]
[392097671,1761160238438,-500.0,0.00025933,2]
[392097673,1761160238448,-500.0,0.00025933,2]
[392097675,1761160238458,-500.0,0.00025933,2]
[392097677,1761160238468,-500.0,0.00025933,2]
[392097679,1761160238479,-500.0,0.00025933,2]
[392097682,1761160238489,-500.0,0.00025933,2]
[392097684,1761160238500,-500.0,0.00025933,2]
[392097686,1761160238510,-500.0,0.00025933,2]
[392097688,1761160238520,-500.0,0.00025933,2]
[392097690,1761160238531,-500.0,0.00025933,2]
[392097692,1761160238541,-500.0,0.00025933,2]
[392097694,1761160238551,-500.0,0.00025933,2]
[392097696,1761160238561,-500.0,0.00025933,2]
[392097698,1761160238572,-500.0,0.00025933,2]
[392097700,1761160238582,-500.0,0.00025933,2]
[392097702,1761160238591,-500.0,0.00025933,2]
[392097704,1761160238601,-500.0,0.00025933,2]
[392097706,1761160238610,-36167.35837547,0.00025936,30]
[392097708,1761160238620,-500.0,0.00025973,2]
[392097710,1761160238630,-306.77318573,0.00025973,2]
[392097712,1761160238639,-373.28030585,0.00025973,2]
[392097714,1761160238649,-500.0,0.00025973,2]
[392097716,1761160238659,-343.43017407,0.00025973,2]
[392097718,1761160238670,-500.0,0.00025973,2]
[392097720,1761160238679,-500.0,0.00025973,2]
[392097722,1761160238689,-500.0,0.00025973,2]
[392097724,1761160238699,-166.66,0.00026208,2]
[392097726,1761160238708,-666.0,0.00026251,2]
[392097728,1761160238717,-500.0,0.00026264,2]
[392097729,1761160238727,-500.0,0.00026264,2]
[392097731,1761160238736,-488.26916608,0.00026354,2]
[392097733,1761160238746,-166.68,0.00026482,2]
[392097736,1761160238756,-1000.0,0.00026521,2]
[392097737,1761160238765,-1000.0,0.00026521,2]
[392097738,1761160238774,-500.0,0.00026521,2]
[392097739,1761160238784,-500.0,0.00026521,2]
[392097740,1761160238794,-680.4824558,0.0002658,2]
[392097741,1761160238804,-287.46312264,0.00026676,2]
[392097742,1761160238814,-1000.0,0.00026812,2]
[392097743,1761160238824,-500.0,0.00026973,2]
[392097744,1761160238835,-870.91,0.00026977,10]
[392097745,1761160238847,-167.95186445,0.00026986,2]
[392097746,1761160238859,-307.56467826,0.00026986,2]
[392097747,1761160238871,-57736.6051409,0.00026987,2]
[392097748,1761160238881,-14843.6849327,0.00026997,2]
[392097749,1761160238891,-499.94951459,0.00027068,2]
[392097750,1761160238902,-1500.0,0.00027068,2]
[392097751,1761160238912,-274.15,0.00027196,2]
[392097752,1761160238921,-198.1,0.00027196,2]
[392097754,1761160238931,-224.89,0.00027264,2]
[392097756,1761160238941,-1500.0,0.0002736,2]
[392097758,1761160238950,-547.73582639,0.0002738,2]
[392097760,1761160238960,-614.53254891,0.00027521,5]
[392097762,1761160238970,-2000.0,0.00027616,5]
[392097763,1761160238980,-212.39,0.00027671,7]
[392097766,1761160238990,-2000.0,0.00027907,5]
[392097768,1761160239000,-212.39,0.00027945,8]
[392097769,1761160239010,-403.14601822,0.00028,10]
[392097771,1761160239020,-285.98519524,0.0002801,3]
[392097774,1761160239030,-420.0,0.00028067,2]
[392097775,1761160239039,-632.0,0.00028132,2]
[392097777,1761160239049,-983.0,0.00028132,2]
[392097779,1761160239058,-2164.0,0.00028133,2]
[392097782,1761160239068,-919.6438457,0.00028145,2]
[392097783,1761160239078,-2500.0,0.00028164,5]
[392097785,1761160239089,-160.0,0.0002819,2]
[392097787,1761160239098,-1680.0,0.00028192,2]
[392097788,1761160239107,-2122.38,0.000282,7]
[392097790,1761160239117,-411.0,0.00028206,2]
[392097792,1761160239127,-6906.0,0.00028206,2]
[392097794,1761160239137,-212.39,0.00028219,9]
[392097796,1761160239146,-518.75688517,0.00028268,7]
[392097797,1761160239156,-500.0,0.00028273,5]
[392097798,1761160239165,-500.0,0.00028273,5]
[392097799,1761160239175,-500.0,0.00028273,5]
[392097800,1761160239185,-530.93053923,0.00028273,5]
[392097801,1761160239194,-500.0,0.00028273,5]
[392097802,1761160239205,-500.0,0.00028273,5]
[392097803,1761160239214,-500.0,0.00028273,5]
[392097804,1761160239224,-500.0,0.00028273,5]
[392097805,1761160239235,-562.75090328,0.00028354,2]
[392097806,1761160239246,-250.0,0.00028376,2]
[392097807,1761160239255,-500.0,0.00028455,5]
[392097808,1761160239266,-212.39,0.00028493,10]
[392097809,1761160239276,-502.51300571,0.00028537,10]
[392097810,1761160239286,-500.0,0.00028537,10]
[392097811,1761160239296,-500.0,0.00028673,5]
[392097812,1761160239305,-500.0,0.00028673,5]
[392097814,1761160239315,-500.58622512,0.00028673,5]
[392097816,1761160239325,-500.0,0.00028673,5]
[392097818,1761160239335,-500.0,0.00028673,5]
[392097820,1761160239346,-500.0,0.00028673,5]
[392097822,1761160239356,-502.53122103,0.00028673,5]
[392097824,1761160239366,-57736.6051409,0.00028699,2]
[392097826,1761160239377,-3000.0,0.00028712,5]
[392097829,1761160239389,-260.0,0.00028738,2]
[392097830,1761160239399,-461.79575034,0.0002876,2]
[392097832,1761160239410,-724.99106377,0.0002876,2]
[392097835,1761160239420,-1304.98391478,0.0002876,2]
[392097836,1761160239431,-2319.97140405,0.0002876,2]
[392097838,1761160239441,-663.33734683,0.0002876,2]
[392097840,1761160239451,-1492.50903037,0.0002876,2]
[392097842,1761160239461,-2653.34938732,0.0002876,2]
[392097844,1761160239471,-190.20382595,0.0002876,2]
[392097846,1761160239482,-760.8153038,0.0002876,2]
[392097849,1761160239492,-1711.83443355,0.0002876,2]
[392097851,1761160239502,-3043.2612152,0.0002876,2]
[392097853,1761160239512,-438.22,0.00028767,2]
[392097855,1761160239522,-438.22,0.00028767,2]
[392097857,1761160239532,-438.22,0.00028767,2]
[392097859,1761160239542,-212.39,0.00028767,11]
[392097861,1761160239553,-205.19243452,0.00028781,2]
[392097863,1761160239563,-1017.8156044,0.00028821,5]
[392097865,1761160239573,-621.2588575,0.00028821,5]
[392097868,1761160239583,-1000.0,0.00028821,5]
[392097871,1761160239593,-1000.0,0.00028821,5]
[392097874,1761160239603,-501.88854632,0.00028821,5]
[392097877,1761160239613,-857.48177309,0.00028948,2]
[392097880,1761160239623,-1001.92,0.00029,2]
[392097883,1761160239633,-212.39,0.00029041,12]
[392097886,1761160239643,-177.87051647,0.00029071,21]
[392097889,1761160239653,-234.816,0.00029071,21]
[392097892,1761160239662,-200.0,0.000291,7]
[392097895,1761160239672,-1001.92,0.00029174,2]
[392097898,1761160239682,-161.586398,0.00029204,2]
[392097901,1761160239691,-1002.70253193,0.00029221,5]
[392097904,1761160239701,-1000.0,0.00029221,5]
[392097907,1761160239710,-1000.0,0.00029221,5]
[392097910,1761160239720,-1000.0,0.00029221,5]
[392097913,1761160239729,-1000.0,0.00029221,5]
[392097916,1761160239738,-360.0,0.00029286,2]
[392097918,1761160239747,-212.39,0.00029315,13]
[392097921,1761160239756,-1500.0,0.00029368,5]
[392097924,1761160239768,-500.0,0.00029368,5]
[392097926,1761160239777,-285.98,0.00029459,4]
[392097931,1761160239787,-160.0,0.00029473,2]
[392097934,1761160239797,-285.98,0.00029478,5]
[392097937,1761160239807,-417.15472785,0.0002948,2]
[392097940,1761160239816,-403.14601822,0.0002948,2]
[392097942,1761160239826,-571.96,0.00029489,5]
[392097945,1761160239835,-285.98,0.000295,5]
[392097949,1761160239845,-200.0,0.0002951,7]
[392097952,1761160239854,-438.22,0.00029572,2]
[392097954,1761160239864,-212.39,0.00029589,14]
[392097956,1761160239874,-5428.76450265,0.00029689,2]
[392097958,1761160239883,-363.37545568,0.00029689,2]
[392097960,1761160239893,-300.0,0.000297,13]
[392097962,1761160239904,-300.0,0.000297,13]
[392097965,1761160239913,-300.0,0.000297,13]
[392097967,1761160239923,-300.0,0.000297,13]
[392097969,1761160239933,-300.0,0.000297,13]